bitfinex/quotes_SOLUSD_20250307
["timestamp","ask_amount","ask_price","bid_price","bid_amount"]
[1741311965553,1.2565399,141.85,141.83,0.14216157]
[1741311965752,1.2565399,141.85,141.84,18.933972]
[1741311965956,1.2565399,141.85,141.84,44.36220942]
[1741311966155,1.2565399,141.85,141.84,169.62710942]
[1741311966156,1.1144399,141.85,141.84,169.62710942]
[1741311966391,0.033,141.89,141.86,0.14216157]
[1741311966570,0.033,141.89,141.87,1.47922982]
[1741311966867,0.033,141.89,141.86,125.2649]
[1741311967051,0.033,141.89,141.84,0.14216157]
[1741311967366,0.033,141.89,141.86,0.14216157]
[1741311967770,0.033,141.89,141.88,0.14216157]
[1741311968070,0.033,141.89,141.88,137.94216157]
[1741311968451,0.033,141.89,141.82,149.74]
[1741311968649,0.033,141.89,141.85,312.0]
[1741311968875,0.033,141.89,141.85,449.8]
[1741311969076,0.033,141.89,141.85,137.8]
[1741311969452,0.033,141.89,141.82,137.8]
[1741311970071,0.033,141.89,141.79,137.8]
[1741311971178,11.76,141.88,141.8,1.48039671]
[1741311971391,11.76,141.88,141.79,137.8]
[1741311971670,0.033,141.89,141.81,44.07788628]
[1741311971871,0.033,141.89,141.81,1.47982565]
[1741311972075,0.033,141.89,141.82,0.14216157]
[1741311972286,0.033,141.89,141.82,137.8]
[1741311972453,0.033,141.89,141.77,44.07788628]
[1741311972651,0.033,141.89,141.78,1.48031156]
[1741311972856,0.033,141.89,141.78,45.55819784]
[1741311973160,0.033,141.89,141.78,137.8]
[1741311973363,0.14216157,141.88,141.77,137.8]
[1741311973560,0.14216157,141.88,141.74,137.83]
[1741311973754,0.14216157,141.88,141.75,45.5586123]
[1741311973960,0.14216157,141.88,141.76,44.07788628]
[1741311974154,0.14216157,141.88,141.75,1.48072602]
[1741311974366,0.14216157,141.88,141.74,137.83]
[1741311974551,2.14216157,141.88,141.74,137.83]
[1741311974750,18.68264886,141.89,141.74,137.83]
[1741311974951,0.033,141.89,141.77,2.14216157]
[1741311975166,0.033,141.89,141.86,44.07788628]
[1741311975372,0.033,141.89,141.86,137.8]
[1741311975679,0.033,141.89,141.86,493.87788628]
[1741311975856,0.033,141.89,141.87,44.07788628]
[1741311976062,0.033,141.89,141.88,44.22004785]
[1741311976359,0.033,141.89,141.88,0.14216157]
[1741311976761,0.033,141.89,141.88,44.22004785]
[1741311976967,0.033,141.89,141.87,137.8]
[1741311977153,0.033,141.89,141.88,0.14216157]
[1741311977559,0.033,141.89,141.88,139.56353696]
[1741311977768,0.033,141.89,141.88,182.16220942]
[1741311978080,0.033,141.89,141.88,182.02004785]
[1741311978280,0.033,141.89,141.88,182.16220942]
[1741311978495,0.033,141.99,141.89,0.14216157]
[1741311978667,0.033,141.99,141.93,0.14216157]
[1741311978985,0.033,141.99,141.93,137.8]
[1741311979180,0.033,141.99,141.87,137.8]
[1741311979477,0.033,141.99,141.89,0.14216157]
[1741311979978,0.033,141.99,141.89,137.8]
[1741311980179,12.30216157,141.98,141.84,44.07788628]
[1741311980354,18.64964886,141.97,141.84,137.8]
[1741311980761,18.64964886,141.95,141.84,137.8]
[1741311980956,0.14216157,141.94,141.81,181.87788628]
[1741311981164,0.14216157,141.94,141.85,0.03]
[1741311981465,0.033,141.89,141.79,137.8]
[1741311982187,0.033,141.89,141.81,44.07788628]
[1741311982401,0.033,141.89,141.8,45.55826432]
[1741311982563,0.033,141.89,141.79,356.07788628]
[1741311982759,0.033,141.89,141.79,312.0]
[1741311983078,18.68264886,141.89,141.79,312.0]
[1741311983464,0.17516157,141.89,141.79,312.0]
[1741311983698,0.17516157,141.89,141.77,137.8]
[1741311984563,18.68264886,141.89,141.78,45.55845532]
[1741311984881,0.17516157,141.89,141.77,137.8]
[1741311985087,0.17516157,141.89,141.77,181.87788628]
[1741311985779,0.17516157,141.89,141.78,44.07788628]
[1741311986360,0.033,141.89,141.78,1.4804426]
[1741311986565,0.033,141.89,141.78,495.35832888]
[1741311986876,0.033,141.89,141.78,493.87788628]
[1741311987269,0.033,141.89,141.81,44.07788628]
[1741311987965,0.033,141.89,141.79,45.55808203]
[1741311988166,0.033,141.89,141.81,44.07788628]
[1741311988670,0.033,141.89,141.79,45.55817749]
[1741311989185,0.033,141.89,141.8,44.07788628]
[1741311989886,0.033,141.89,141.8,181.87788628]
[1741311990093,0.033,141.89,141.8,137.8]
[1741311990395,0.033,141.89,141.8,493.87788628]
[1741311990599,0.033,141.89,141.8,449.8]
[1741311991884,0.033,141.89,141.76,0.14216157]
[1741311992078,0.033,141.89,141.78,44.07788628]
[1741311992486,0.033,141.89,141.77,1.48038014]
[1741311992686,18.68264886,141.89,141.76,181.87788628]
[1741311992891,18.68264886,141.89,141.77,45.55837889]
[1741311993092,18.68264886,141.89,141.77,1.48049261]
[1741311993295,18.68264886,141.89,141.77,45.55837889]
[1741311993507,18.68264886,141.89,141.76,181.87788628]
[1741311993802,18.68264886,141.89,141.77,44.07788628]
[1741311993983,0.17516157,141.89,141.76,44.07788628]
[1741311994298,0.17516157,141.89,141.76,137.8]
[1741311994677,0.17516157,141.89,141.76,181.87788628]
[1741311994876,0.17516157,141.89,141.76,493.87788628]
[1741311995279,2.0,141.86,141.75,0.03]
[1741311995481,11.7,141.85,141.75,0.03]
[1741311995800,11.68,141.84,141.75,0.03]
[1741311997099,15.15590006,141.84,141.75,0.03]
[1741311999076,3.47590006,141.84,141.76,29.04329022]
[1741311999281,11.6,141.87,141.76,29.04329022]
[1741311999691,11.6,141.87,141.75,137.83]
[1741312000984,15.22167703,141.87,141.75,137.83]
[1741312002189,15.22167703,141.87,141.75,449.83]
[1741312002712,3.62167703,141.87,141.76,30.52407506]
[1741312003007,11.513,141.89,141.76,30.52407506]
[1741312003205,15.12336481,141.89,141.76,137.8]
[1741312004306,11.4,141.88,141.76,137.8]
[1741312005615,11.4,141.88,141.76,449.8]
[1741312005800,18.64964886,141.87,141.76,449.8]
[1741312006315,11.4,141.88,141.76,449.8]
[1741312006508,18.64964886,141.87,141.76,449.8]
[1741312007316,11.4,141.88,141.76,449.8]
[1741312007705,0.14216157,141.86,141.76,312.0]
[1741312007891,18.64964886,141.87,141.75,0.03]
[1741312008094,18.64964886,141.87,141.75,29.07329022]
[1741312008324,18.64964886,141.87,141.75,0.03]
[1741312008999,0.14216157,141.86,141.75,0.03]
[1741312010191,8.0011,141.83,141.74,0.0001]
[1741312012610,8.0011,141.83,141.76,29.04329022]
[1741312012802,1.5514,141.83,141.75,1.48081335]
[1741312013005,1.5514,141.83,141.76,29.04329022]
[1741312013208,1.5514,141.83,141.75,139.28081335]
[1741312013510,1.5514,141.83,141.75,137.8]
[1741312014817,1.5514,141.83,141.75,312.0]
[1741312015006,5.03956298,141.83,141.74,0.0001]
[1741312015200,12.6714,141.83,141.74,0.0001]
[1741312017904,2.0,141.81,141.74,0.0001]
[1741312018225,11.04,141.82,141.7,137.8]
[1741312018447,5.15294204,141.83,141.7,166.84329022]
[1741312018601,5.15294204,141.83,141.72,29.04329022]
[1741312018806,5.15294204,141.83,141.73,1.48084179]
[1741312019099,11.0,141.82,141.71,137.8]
[1741312020528,2.0,141.81,141.71,98.5547]
[1741312020830,5.15294204,141.83,141.74,29.04329022]
[1741312021035,5.15294204,141.83,141.72,0.28432314]
[1741312021217,5.15294204,141.83,141.77,312.0]
[1741312021411,5.15294204,141.83,141.77,410.5547]
[1741312021821,0.033,141.87,141.78,1.62280879]
[1741312022124,0.033,141.87,141.81,29.18545179]
[1741312022308,0.033,141.87,141.83,0.14216157]
[1741312022508,0.033,141.87,141.84,1.47984071]
[1741312022713,0.033,141.87,141.84,98.5547]
[1741312023126,0.033,141.87,141.8,100.03464635]
[1741312023328,0.033,141.87,141.81,47.97726222]
[1741312023533,0.033,141.87,141.83,0.14216157]
[1741312023728,0.033,141.87,141.83,100.17662113]
[1741312024133,0.033,141.87,141.83,98.69686157]
[1741312024327,0.033,141.87,141.83,98.5547]
[1741312024829,0.033,141.87,141.81,98.5547]
[1741312025210,11.1,141.86,141.77,98.5547]
[1741312025411,11.1,141.86,141.76,98.5547]
[1741312026514,14.55952632,141.86,141.76,98.5547]
[1741312026712,11.06,141.85,141.76,98.5547]
[1741312026933,12.6614,141.85,141.76,98.5547]
[1741312027629,12.6614,141.85,141.75,98.5547]
[1741312027824,12.6614,141.85,141.73,98.5547]
[1741312028033,6.3082,141.84,141.73,410.5547]
[1741312028543,6.3082,141.84,141.74,1.48087066]
[1741312028744,6.3082,141.84,141.74,100.03557066]
[1741312029042,6.3082,141.84,141.75,29.18545179]
[1741312029448,6.3082,141.84,141.75,0.14216157]
[1741312029809,12.6614,141.85,141.77,0.14216157]
[1741312030018,1.6014,141.85,141.79,0.14216157]
[1741312030219,14.48984693,141.87,141.79,98.69686157]
[1741312030535,3.50984693,141.87,141.79,98.69686157]
[1741312030741,3.50984693,141.87,141.79,127.74015179]
[1741312030742,0.033,141.87,141.79,127.74015179]
[1741312031448,0.033,141.87,141.81,0.14216157]
[1741312031643,0.033,141.87,141.81,410.69686157]
[1741312032837,0.033,141.87,141.81,410.5547]
[1741312033743,0.033,141.87,141.79,0.14216157]
[1741312034530,0.033,141.87,141.78,98.5547]
[1741312034717,0.033,141.87,141.77,98.5547]
[1741312034912,0.033,141.87,141.74,98.5547]
[1741312035343,0.033,141.87,141.74,129.07875391]
[1741312035550,0.033,141.87,141.74,98.5547]
[1741312036317,0.033,141.87,141.77,29.04329022]
[1741312036513,0.033,141.87,141.79,29.04329022]
[1741312036729,0.033,141.87,141.79,441.07828658]
[1741312037020,0.033,141.87,141.8,0.14216157]
[1741312037740,0.033,141.87,141.82,0.14216157]
[1741312037932,0.033,141.87,141.82,98.69686157]
[1741312038128,0.033,141.87,141.82,98.5547]
[1741312040131,0.033,141.87,141.82,410.5547]
[1741312040537,0.033,141.87,141.79,98.5547]
[1741312041124,0.033,141.87,141.75,1.48048365]
[1741312041320,0.033,141.87,141.75,100.03518365]
[1741312041554,0.033,141.87,141.75,98.5547]
[1741312043441,0.033,141.87,141.76,312.0]
[1741312043739,0.033,141.87,141.74,98.5547]
[1741312044134,0.033,141.87,141.74,100.03553025]
[1741312044343,0.033,141.87,141.74,98.5547]
[1741312044547,0.033,141.87,141.73,98.5547]
[1741312044722,6.5099,141.86,141.73,127.59799022]
[1741312044929,6.5099,141.86,141.73,98.5547]
[1741312045343,20.79181043,141.85,141.72,1.4808426]
[1741312045528,20.79181043,141.85,141.71,98.5847]
[1741312045529,2.0,141.84,141.71,98.5847]
[1741312045854,10.72,141.83,141.71,98.5847]
[1741312046368,1.5059,141.82,141.71,98.5847]
[1741312046571,1.5059,141.82,141.71,312.03]
[1741312046865,1.5059,141.82,141.71,341.07329022]
[1741312047033,1.5059,141.82,141.71,312.03]
[1741312047236,1.5059,141.82,141.71,341.07329022]
[1741312047572,10.66,141.81,141.72,29.04329022]
[1741312047929,10.66,141.81,141.72,139.28110236]
[1741312047930,10.68,141.81,141.72,139.28110236]
[1741312048131,10.68,141.81,141.73,29.04329022]
[1741312048327,10.68,141.81,141.72,166.84329022]
[1741312048558,10.68,141.81,141.73,29.04329022]
[1741312048762,10.68,141.81,141.76,29.04329022]
[1741312049054,6.5099,141.86,141.78,29.04329022]
[1741312049352,9.97519742,141.86,141.79,0.14216157]
[1741312049554,9.97519742,141.86,141.79,137.8]
[1741312049761,9.97519742,141.86,141.77,137.8]
[1741312050551,9.97519742,141.86,141.78,312.0]
[1741312051461,0.033,141.87,141.78,312.0]
[1741312052543,10.693,141.87,141.78,312.0]
[1741312052750,10.693,141.87,141.78,449.8]
[1741312052944,10.693,141.87,141.78,137.8]
[1741312053961,0.033,141.87,141.77,29.32761336]
[1741312054253,0.033,141.87,141.78,1.62244034]
[1741312054659,0.033,141.87,141.78,139.42244034]
[1741312054850,0.033,141.87,141.78,137.94216157]
[1741312055156,0.033,141.87,141.78,166.98545179]
[1741312055354,0.033,141.87,141.78,137.94216157]
[1741312055554,0.033,141.87,141.78,137.8]
[1741312055953,0.033,141.87,141.78,449.8]
[1741312056130,0.033,141.87,141.78,312.0]
[1741312056868,20.16334886,141.87,141.73,29.04329022]
[1741312057041,20.16334886,141.87,141.73,137.8]
[1741312057540,18.79181043,141.86,141.71,137.83]
[1741312057751,1.4807,141.85,141.71,137.83]
[1741312059730,18.79181043,141.84,141.71,449.83]
[1741312059931,18.79181043,141.84,141.71,312.03]
[1741312060239,0.14216157,141.86,141.71,341.07329022]
[1741312060443,18.79181043,141.84,141.71,341.07329022]
[1741312060842,20.16334886,141.87,141.73,29.04329022]
[1741312061155,10.44,141.83,141.74,30.66629071]
[1741312061357,10.44,141.83,141.74,139.28083892]
[1741312061563,10.44,141.83,141.74,137.8]
[1741312063167,10.44,141.83,141.75,1.48087879]
[1741312063864,10.44,141.83,141.75,313.48087879]
[1741312064162,10.44,141.83,141.75,312.0]
[1741312065070,10.44,141.83,141.74,137.8]
[1741312065463,14.0329377,141.83,141.74,137.8]
[1741312065841,14.0329377,141.83,141.72,0.14216157]
[1741312066045,14.0329377,141.83,141.72,139.42314252]
[1741312066375,14.0329377,141.83,141.72,137.94216157]
[1741312067745,14.0329377,141.83,141.71,0.03]
[1741312067952,14.0329377,141.83,141.72,312.0]
[1741312068279,14.0329377,141.83,141.73,1.48111405]
[1741312068280,10.24,141.82,141.73,1.48111405]
[1741312068463,10.24,141.82,141.71,0.17216157]
[1741312068780,10.24,141.82,141.71,1.51109987]
[1741312068985,10.24,141.82,141.71,30.55439009]
[1741312069149,10.24,141.82,141.71,1.51109987]
[1741312069342,10.24,141.82,141.71,0.03]
[1741312069756,10.24,141.82,141.71,0.17216157]
[1741312069943,6.1284,141.81,141.71,0.03]
[1741312071563,10.24,141.8,141.71,312.03]
[1741312071768,10.24,141.8,141.72,1.48103652]
[1741312072148,1.5021,141.79,141.71,312.03]
[1741312072351,10.24,141.78,141.71,312.03]
[1741312072678,10.24,141.78,141.71,0.03]
[1741312072871,1.5021,141.79,141.71,0.03]
[1741312073183,11.7421,141.79,141.71,0.17216157]
[1741312073388,11.7421,141.79,141.71,0.03]
[1741312073564,1.5021,141.79,141.71,0.03]
[1741312073745,11.7421,141.79,141.71,0.03]
[1741312073952,6.36608415,141.79,141.72,0.14216157]
[1741312074181,6.36608415,141.79,141.71,0.03]
[1741312075250,6.36608415,141.79,141.71,1.51121594]
[1741312075451,6.36608415,141.79,141.71,312.03]
[1741312081189,1.5021,141.79,141.73,18.79181043]
[1741312081392,3.48667484,141.82,141.75,37.10239196]
[1741312081697,20.13034886,141.83,141.71,0.03]
[1741312082694,22.13034886,141.83,141.71,0.03]
[1741312082900,20.13034886,141.83,141.71,0.03]
[1741312083202,10.24,141.82,141.73,0.14216157]
[1741312083376,10.24,141.81,141.73,0.14216157]
[1741312083568,10.24,141.81,141.72,1.48122492]
[1741312083768,10.24,141.81,141.72,137.8]
[1741312084185,10.24,141.81,141.72,449.8]
[1741312084777,10.24,141.82,141.73,0.14216157]
[1741312084981,10.24,141.82,141.73,139.42301781]
[1741312085183,4.94173529,141.83,141.73,156.11058153]
[1741312085406,10.24,141.83,141.73,137.94216157]
[1741312086105,15.21223449,141.83,141.73,137.94216157]
[1741312086284,4.97223449,141.83,141.75,18.31058153]
[1741312086479,5.1678899,141.84,141.77,0.14216157]
[1741312086786,5.1678899,141.84,141.77,137.94216157]
[1741312087508,3.6006899,141.84,141.78,1.48044067]
[1741312087690,3.6006899,141.84,141.78,139.28044067]
[1741312088008,3.6006899,141.84,141.79,312.0]
[1741312089904,3.6006899,141.84,141.78,137.8]
[1741312090208,3.6006899,141.84,141.75,137.8]
[1741312090790,3.6006899,141.84,141.72,174.61806882]
[1741312091004,3.6006899,141.84,141.74,0.14216157]
[1741312091204,3.6006899,141.84,141.73,1.48080012]
[1741312092914,3.6006899,141.84,141.73,313.48080012]
[1741312093077,3.6006899,141.84,141.73,312.0]
[1741312094104,3.6006899,141.84,141.74,19.79145945]
[1741312094409,3.6006899,141.84,141.76,0.14216157]
[1741312094706,3.6006899,141.84,141.76,139.42271262]
[1741312094906,3.6006899,141.84,141.76,137.8]
[1741312095613,3.6006899,141.84,141.71,137.83]
[1741312095904,5.0813899,141.84,141.71,0.03]
[1741312096205,10.24,141.83,141.72,18.31058153]
[1741312096385,10.24,141.83,141.72,0.14216157]
[1741312097102,10.24,141.83,141.71,0.03]
[1741312097504,28.88964886,141.83,141.71,0.03]
[1741312097705,6.5762,141.81,141.71,0.03]
[1741312100301,6.5762,141.81,141.71,312.03]
[1741312101425,6.5762,141.81,141.72,0.14216157]
[1741312101596,6.5762,141.81,141.72,19.79181902]
[1741312101918,6.6092,141.81,141.72,1.62339906]
[1741312102218,6.6092,141.81,141.72,137.8]
[1741312104515,6.6092,141.81,141.72,449.8]
[1741312105108,6.6092,141.81,141.72,137.8]
[1741312106015,6.6092,141.81,141.71,137.83]
[1741312106398,6.6092,141.81,141.72,1.62338962]
[1741312106603,6.6092,141.81,141.72,139.28122805]
[1741312106914,6.6092,141.81,141.72,137.8]
[1741312107113,6.6092,141.81,141.73,1.48101959]
[1741312108221,6.6092,141.81,141.73,451.28101959]
[1741312108411,6.6092,141.81,141.73,449.8]
[1741312108997,6.6092,141.81,141.73,137.8]
[1741312109406,6.6092,141.81,141.74,1.62315453]
[1741312109718,6.6092,141.81,141.74,139.42315453]
[1741312109915,6.6092,141.81,141.74,137.8]
[1741312110802,0.033,141.81,141.74,137.8]
[1741312111118,0.033,141.81,141.75,1.48078862]
[1741312111997,0.033,141.81,141.75,313.48078862]
[1741312112213,0.033,141.81,141.75,312.0]
[1741312113616,0.033,141.81,141.76,1.62298694]
[1741312114612,0.033,141.81,141.76,157.5914069]
[1741312114817,0.033,141.81,141.76,156.11058153]
[1741312115019,0.033,141.81,141.77,1.48043546]
[1741312115199,0.033,141.81,141.77,139.28043546]
[1741312115400,0.033,141.81,141.77,137.8]
[1741312115607,0.033,141.81,141.78,1.48045569]
[1741312115807,0.033,141.81,141.79,0.14216157]
[1741312116425,0.033,141.81,141.78,137.8]
[1741312116613,0.033,141.81,141.79,312.0]
[1741312117324,0.033,141.81,141.8,38.58263712]
[1741312117536,0.033,141.81,141.8,176.38263712]
[1741312117836,0.033,141.81,141.8,174.90239196]
[1741312118006,0.033,141.81,141.8,137.94216157]
[1741312118206,0.033,141.81,141.8,137.8]
[1741312119800,0.033,141.81,141.8,156.11058153]
[1741312120198,0.033,141.81,141.8,449.8]
[1741312120423,0.033,141.81,141.8,137.8]
[1741312121201,0.033,141.81,141.8,138.08432314]
[1741312121629,0.033,141.81,141.8,137.94216157]
[1741312122132,0.033,141.81,141.8,156.11058153]
[1741312122503,0.033,141.81,141.8,174.90239196]
[1741312122824,0.033,141.81,141.8,156.2527431]
[1741312123008,0.033,141.81,141.8,137.94216157]
[1741312123209,2.69962767,141.88,141.8,137.8]
[1741312123412,2.69962767,141.88,141.8,312.0]
[1741312124039,2.69962767,141.88,141.77,144.1269]
[1741312124330,2.69962767,141.88,141.78,1.62255837]
[1741312124544,0.033,141.81,141.78,1.62255837]
[1741312124705,0.033,141.81,141.78,137.8]
[1741312124903,0.033,141.81,141.76,155.96841996]
[1741312125134,0.033,141.81,141.77,0.14216157]
[1741312125432,0.033,141.81,141.77,137.8]
[1741312126023,0.033,141.81,141.75,0.28432314]
[1741312126221,0.033,141.81,141.75,139.422826]
[1741312126419,0.033,141.81,141.75,137.8]
[1741312126622,0.033,141.81,141.73,144.4178]
[1741312127012,0.033,141.81,141.74,0.14216157]
[1741312127220,0.033,141.81,141.74,137.8]
[1741312128514,0.033,141.81,141.73,449.94216157]
[1741312129947,0.033,141.81,141.73,312.0]
[1741312130811,0.033,141.81,141.71,0.03]
[1741312131010,10.253,141.81,141.71,0.03]
[1741312132251,10.253,141.81,141.71,0.17216157]
[1741312133818,10.253,141.81,141.71,330.34058153]
[1741312134018,10.253,141.81,141.71,312.17216157]
[1741312135526,10.253,141.81,141.71,0.17216157]
[1741312135833,10.253,141.81,141.71,137.83]
[1741312137118,0.033,141.81,141.71,137.83]
[1741312137322,10.253,141.81,141.71,137.83]
[1741312138653,10.253,141.81,141.71,467.99841996]
[1741312139021,10.253,141.81,141.71,155.99841996]
[1741312139353,10.253,141.81,141.71,137.83]
[1741312141143,0.033,141.81,141.71,137.83]
[1741312141342,10.22,141.8,141.71,137.83]
[1741312141572,10.22,141.8,141.71,0.03]
[1741312141724,10.22,141.8,141.71,18.19841996]
[1741312142048,10.22,141.8,141.71,312.03]
[1741312142973,0.033,141.81,141.72,1.48125529]
[1741312143170,0.033,141.81,141.71,0.03]
[1741312144344,0.033,141.81,141.71,1.65333576]
[1741312144842,0.033,141.81,141.71,137.97216157]
[1741312145349,0.033,141.81,141.71,137.83]
[1741312145951,0.033,141.81,141.71,449.83]
[1741312147145,1.6496,141.8,141.71,137.83]
[1741312147461,11.8696,141.8,141.71,137.83]
[1741312147854,1.6496,141.8,141.71,137.83]
[1741312148057,11.8696,141.8,141.72,0.14216157]
[1741312148365,11.8696,141.8,141.71,155.99841996]
[1741312148964,11.8696,141.8,141.71,137.83]
[1741312149944,1.6496,141.8,141.72,1.76540204]
[1741312150141,1.6496,141.8,141.73,312.0]
[1741312151053,1.6496,141.8,141.73,0.14216157]
[1741312151253,1.6496,141.8,141.73,0.28432314]
[1741312151456,1.6496,141.8,141.73,1.76521427]
[1741312152349,1.6496,141.8,141.75,0.14216157]
[1741312152550,0.033,141.81,141.77,0.14216157]
[1741312152773,0.033,141.81,141.78,0.14216157]
[1741312153069,0.033,141.81,141.8,18.4527431]
[1741312153272,0.033,141.81,141.8,176.38239996]
[1741312153468,0.033,141.81,141.8,174.90239196]
[1741312154064,0.033,141.81,141.8,486.90239196]
[1741312155171,0.033,141.81,141.8,468.733972]
[1741312155349,0.033,141.81,141.8,449.94216157]
[1741312155669,0.033,141.81,141.8,312.0]
[1741312156057,0.033,141.81,141.8,312.28432314]
[1741312156276,0.033,141.81,141.8,486.90239196]
[1741312157077,0.033,141.81,141.8,468.733972]
[1741312157249,0.033,141.81,141.8,486.90239196]
[1741312157774,0.033,141.89,141.81,18.933972]
[1741312158076,0.033,141.89,141.88,18.4527431]
[1741312158257,0.033,141.89,141.88,211.0996426]
[1741312158450,10.98021416,141.97,141.9,0.28432314]
[1741312158761,10.98021416,141.97,141.95,0.28432314]
[1741312159076,10.98021416,142.0,141.92,0.28432314]
[1741312159257,10.98021416,142.0,141.92,137.94216157]
[1741312159454,10.98021416,142.0,141.9,137.8]
[1741312159760,3.0416,141.98,141.88,137.8]
[1741312160564,3.59388429,141.96,141.88,137.8]
[1741312160957,3.59388429,141.96,141.88,449.8]
[1741312161280,0.033,141.96,141.91,0.14216157]
[1741312161462,0.033,141.96,141.92,1.47913579]
[1741312161663,0.033,141.96,141.93,29.28609409]
[1741312161872,0.033,141.96,141.93,0.14216157]
[1741312162172,0.033,141.96,141.91,137.8]
[1741312163348,0.033,141.96,141.95,29.28609409]
[1741312163557,0.033,141.96,141.95,214.7375139]
[1741312163758,0.033,141.99,141.96,18.933972]
[1741312164065,0.033,141.99,141.98,29.28609409]
[1741312164267,0.033,141.99,141.98,138.08432314]
[1741312164460,0.033,141.99,141.98,450.08432314]
[1741312164674,0.033,141.99,141.98,449.94216157]
[1741312164869,0.033,141.99,141.98,450.08432314]
[1741312165280,0.033,141.99,141.98,449.94216157]
[1741312165461,0.033,141.99,141.96,137.8]
[1741312166090,0.033,141.99,141.93,185.45141981]
[1741312166386,0.033,141.99,141.94,1.47872871]
[1741312166559,0.033,141.99,141.98,47.93574295]
[1741312166767,0.033,141.99,141.98,185.73574295]
[1741312167005,0.033,142.04,141.99,18.933972]
[1741312167302,0.033,142.04,142.03,0.14216157]
[1741312167487,0.033,142.04,142.03,137.94216157]
[1741312167803,0.033,142.04,142.03,137.8]
[1741312168310,0.033,142.04,142.03,137.94216157]
[1741312168476,0.033,142.04,142.03,449.94216157]
[1741312168893,0.033,142.04,142.03,185.73574295]
[1741312169183,0.033,142.04,142.03,138.08432314]
[1741312169664,0.033,142.04,142.03,167.08609409]
[1741312170477,0.033,142.04,142.03,138.08432314]
[1741312170675,0.033,142.04,142.03,137.8]
[1741312170871,0.033,142.04,142.01,137.8]
[1741312171262,0.033,142.04,142.0,137.8]
[1741312171457,0.033,142.04,141.96,92.28]
[1741312171458,0.033,142.04,141.96,137.8]
[1741312171666,0.033,142.04,141.95,137.8]
[1741312171868,0.033,142.04,141.95,449.8]
[1741312172083,0.033,142.04,141.93,147.98]
[1741312172276,1.4807,142.03,141.93,137.8]
[1741312172968,1.4807,142.03,141.91,0.28432314]
[1741312173169,1.4807,142.03,141.91,137.8]
[1741312173387,1.5137,142.04,141.91,137.8]
[1741312173888,1.5137,142.04,141.92,0.14216157]
[1741312174066,18.64964886,142.03,141.91,137.8]
[1741312174261,1.4807,142.02,141.88,47.65141981]
[1741312174462,10.18,142.01,141.89,29.28609409]
[1741312174678,10.18,142.01,141.9,1.47906941]
[1741312174991,10.18,142.02,141.91,0.14216157]
[1741312175176,10.18,142.02,141.91,449.94216157]
[1741312175379,10.18,142.02,141.93,0.14216157]
[1741312175566,10.18,142.02,141.93,29.14393252]
[1741312175889,10.18,142.02,141.94,1.47878093]
[1741312176192,3.62394153,142.04,141.96,29.00177095]
[1741312176493,3.62394153,142.04,141.95,29.14393252]
[1741312176671,3.62394153,142.04,141.95,30.62249762]
[1741312176871,3.62394153,142.04,141.95,29.14393252]
[1741312178074,3.62394153,142.04,141.96,30.48036442]
[1741312178394,3.62394153,142.04,141.96,0.14216157]
[1741312178577,3.62394153,142.04,141.96,312.14216157]
[1741312178979,3.62394153,142.04,141.96,312.0]
[1741312179187,3.62394153,142.04,141.96,341.00177095]
[1741312179372,3.62394153,142.04,141.97,1.62063808]